bitfinex-derivatives/quotes_SOLF0:USTF0_20260312
["timestamp","ask_amount","ask_price","bid_price","bid_amount"]
[1773337398600,3.39859142,86.76,86.721,6.95001728]
[1773337398797,3.39859142,86.76,86.71,10.3486087]
[1773337398999,3.39859142,86.76,86.711,6.95001728]
[1773337399200,10.371,86.767,86.712,6.95001728]
[1773337399392,3.39859142,86.76,86.712,6.95001728]
[1773337400396,3.39859142,86.75,86.712,6.95001728]
[1773337400590,0.07305548,86.745,86.712,6.95001728]
[1773337401601,10.373,86.744,86.701,6.95005297]
[1773337402300,10.374,86.737,86.701,6.95005297]
[1773337402895,3.39859142,86.75,86.701,6.95005297]
[1773337403497,11.55431962,86.79,86.704,6.95166727]
[1773337403799,20.736,86.791,86.711,6.95166727]
[1773337403800,3.39859142,86.76,86.711,6.95166727]
[1773337404000,3.39859142,86.77,86.711,6.95166727]
[1773337404897,10.372,86.759,86.713,6.95166727]
[1773337406597,10.372,86.759,86.715,6.95385035]
[1773337406800,3.39859142,86.77,86.715,6.95385035]
[1773337407302,3.39859142,86.76,86.715,6.95385035]
[1773337408002,3.39859142,86.75,86.715,6.95385035]
[1773337408501,3.39859142,86.75,86.7,10.35238753]
[1773337408701,3.39859142,86.75,86.701,6.95379611]
[1773337408899,10.373,86.747,86.706,6.95379611]
[1773337409699,10.372,86.754,86.711,6.97485535]
[1773337409896,3.39859142,86.77,86.711,6.97485535]
[1773337410704,10.372,86.755,86.711,6.97485535]
[1773337411203,3.39859142,86.77,86.721,6.97485535]
[1773337411403,10.372,86.759,86.722,6.97934482]
[1773337412702,11.76784303,86.79,86.731,6.97934482]
[1773337412703,15.16643445,86.79,86.731,6.97934482]
[1773337413906,10.37,86.775,86.731,6.97934482]
[1773337414807,10.368,86.785,86.741,6.92817232]
[1773337415002,3.39859142,86.8,86.741,6.92817232]
[1773337415307,3.39859142,86.79,86.741,6.92817232]
[1773337416008,10.369,86.777,86.741,6.92817232]
[1773337416206,3.39859142,86.79,86.741,6.92817232]
[1773337416708,3.39859142,86.78,86.727,6.86954771]
[1773337416908,3.39859142,86.77,86.727,6.86954771]
[1773337417998,10.371,86.764,86.727,6.86954771]
[1773337421908,10.371,86.764,86.674,34.53]
[1773337421909,3.39859142,86.76,86.714,6.88415818]
[1773337422910,10.373,86.749,86.714,6.88415818]
[1773337424917,20.736,86.791,86.72,3.39859142]
[1773337425115,3.39859142,86.78,86.731,6.88186084]
[1773337425815,10.37,86.776,86.732,6.87846107]
[1773337426013,3.39859142,86.78,86.732,6.87846107]
[1773337426512,10.371,86.762,86.732,6.87846107]
[1773337426916,3.39859142,86.77,86.732,6.87846107]
[1773337427111,3.39859142,86.78,86.732,6.87846107]
[1773337428019,0.07338358,86.765,86.732,6.87846107]
[1773337432820,0.07338358,86.765,86.734,6.87203906]
[1773337433520,10.371,86.764,86.721,6.87225088]
[1773337434418,10.371,86.764,86.723,6.87225088]
[1773337434919,10.372,86.759,86.723,6.87225088]
[1773337444128,10.371,86.766,86.725,6.82276296]
[1773337444523,21.97890591,86.8,86.741,6.82276296]
[1773337444725,21.97890591,86.8,86.694,20.759]
[1773337444726,3.40158008,86.81,86.751,6.82276296]
[1773337445322,0.07361819,86.789,86.751,17.19476296]
[1773337445528,0.07361819,86.789,86.752,6.82109075]
[1773337447023,0.07361819,86.789,86.755,6.82109075]
[1773337449227,0.07361819,86.789,86.756,10.372]
[1773337449428,0.07361819,86.789,86.757,6.81698926]
[1773337450123,0.07361819,86.789,86.761,6.81698926]
[1773337450321,0.07361819,86.789,86.704,528.26218485]
[1773337450322,3.40158008,86.82,86.771,6.78018017]
[1773337450925,15.1603428,86.82,86.771,6.78018017]
[1773337451631,10.365,86.811,86.771,6.78018017]
[1773337452531,10.366,86.805,86.771,6.78018017]
[1773337455838,10.365,86.812,86.771,6.78018017]
[1773337456035,340.84942355,86.826,86.78,10.16583065]
[1773337456233,340.84942355,86.826,86.781,6.76425057]
[1773337456830,340.84942355,86.826,86.789,6.76425057]
[1773337457036,3.40158008,86.84,86.791,6.76425057]
[1773337458035,3.40158008,86.82,86.775,6.77605102]
[1773337458436,3.40158008,86.83,86.781,6.77605102]
[1773337459141,13.76558008,86.82,86.781,6.77605102]
[1773337459841,13.76558008,86.82,86.783,6.75858445]
[1773337462134,13.76558008,86.82,86.75,44.38]
[1773337462135,3.40158008,86.83,86.785,6.75654468]
[1773337462340,36.3,86.847,86.791,6.75654468]
[1773337462539,3.40158008,86.86,86.811,6.75654468]
[1773337462738,337.35080236,86.863,86.815,6.75654468]
[1773337463333,10.361,86.849,86.815,6.75654468]
[1773337463534,10.361,86.849,86.805,6.75801304]
[1773337463939,10.361,86.849,86.81,3.40158008]
[1773337464242,10.36,86.856,86.811,6.75801304]
[1773337465542,10.36,86.856,86.815,6.75382158]
[1773337466346,10.361,86.85,86.815,6.75382158]
[1773337466547,13.76258008,86.85,86.815,6.75382158]
[1773337466943,10.361,86.844,86.801,6.75382158]
[1773337467344,3.40158008,86.85,86.801,6.75382158]
[1773337468144,3.40158008,86.85,86.8,3.40158008]
[1773337468145,10.361,86.849,86.804,6.75514757]
[1773337468848,3.40158008,86.86,86.804,6.75514757]
[1773337469548,13.76258008,86.85,86.806,6.7543835]
[1773337470543,13.76258008,86.85,86.81,6.7543835]
[1773337470941,10.361,86.85,86.81,6.7543835]
[1773337471646,10.361,86.85,86.811,6.76148806]
[1773337471844,10.361,86.85,86.821,0.07343083]
[1773337473348,10.362,86.843,86.821,0.07343083]
[1773337473545,3.40158008,86.85,86.821,0.07343083]
[1773337474552,3.40158008,86.86,86.821,0.07343083]
[1773337474750,337.35080236,86.863,86.821,0.07343083]
[1773337474751,3.40158008,86.85,86.821,0.07343083]
[1773337476050,10.361,86.848,86.821,0.07343083]
[1773337476454,3.40158008,86.85,86.821,0.07343083]
[1773337476655,10.361,86.849,86.821,0.07343083]
[1773337482860,10.362,86.843,86.821,0.07343083]
[1773337483060,3.40158008,86.85,86.821,0.07343083]
[1773337483360,3.40158008,86.85,86.821,6.83877087]
[1773337485561,3.40158008,86.85,86.821,0.07343083]
[1773337486958,13.76158008,86.86,86.821,6.81193675]
[1773337487164,337.35080236,86.863,86.821,6.81193675]
[1773337487361,3.40158008,86.86,86.821,6.81193675]
[1773337487761,337.35080236,86.863,86.821,6.81193675]
[1773337487963,3.40158008,86.86,86.829,17.09510292]
[1773337488662,337.35080236,86.863,86.836,6.73210292]
[1773337490767,337.35080236,86.863,86.837,10.362]
[1773337490961,337.35080236,86.863,86.838,6.72962589]
[1773337491261,337.35080236,86.863,86.842,6.7311554]
[1773337491463,337.35080236,86.863,86.8,14.2302344]
[1773337491464,3.40158008,86.85,86.8,3.40158008]
[1773337491663,9.47413055,86.849,86.79,3.40158008]
[1773337493957,9.47413055,86.849,86.813,10.365]
[1773337495659,9.52278864,86.839,86.811,0.0737462]
[1773337496270,9.52278864,86.839,86.781,14.2302344]
[1773337496566,9.52278864,86.839,86.79,3.40158008]
[1773337496766,12.92436872,86.85,86.811,10.365]
[1773337497062,9.52278864,86.85,86.8,3.40158008]
[1773337497870,9.52278864,86.85,86.815,10.365]
[1773337498665,12.92436872,86.85,86.815,10.365]
[1773337498865,9.51884227,86.849,86.815,10.365]
[1773337500268,3.40158008,86.86,86.821,10.364]
[1773337500769,3.40158008,86.86,86.823,0.07295106]
[1773337500770,9.51748322,86.859,86.823,0.07295106]
[1773337501372,9.51812058,86.858,86.823,0.07295106]
[1773337502672,3.40158008,86.85,86.823,0.07295106]
[1773337503173,12.91970066,86.85,86.823,0.07295106]
[1773337503379,3.40158008,86.83,86.793,14.2302344]
[1773337503672,3.40158008,86.83,86.792,14.2302344]
[1773337504369,3.40158008,86.83,86.793,14.2302344]
[1773337504674,9.47767188,86.839,86.793,14.2302344]
[1773337504875,9.47767188,86.839,86.805,10.366]
[1773337505175,9.47767188,86.829,86.79,14.2302344]
[1773337505375,9.47767188,86.829,86.789,14.2302344]
[1773337505972,9.47767188,86.829,86.785,14.2302344]
[1773337506173,9.47767188,86.829,86.786,14.2302344]
[1773337506476,9.47767188,86.829,86.787,14.2302344]
[1773337506879,9.47473242,86.819,86.789,10.368]
[1773337507773,0.0726677,86.813,86.789,10.368]
[1773337509079,3.39653983,86.81,86.782,14.2302344]
[1773337509774,3.39653983,86.81,86.774,10.37]
[1773337509775,9.47387871,86.809,86.774,10.37]
[1773337510074,3.39653983,86.8,86.774,10.37]
[1773337510273,9.47387871,86.799,86.765,14.2302344]
[1773337510680,3.39653983,86.79,86.76,14.2302344]
[1773337510868,9.47387871,86.799,86.76,14.2302344]
[1773337511270,9.47387871,86.799,86.758,14.2302344]
[1773337511776,9.47387871,86.799,86.766,10.371]
[1773337512578,3.39653983,86.81,86.774,10.37]
[1773337513275,9.42191914,86.809,86.767,10.37]
[1773337513479,9.41851128,86.799,86.752,14.2302344]
[1773337513677,9.41851128,86.799,86.746,14.2302344]
[1773337513983,3.39653983,86.79,86.752,10.372]
[1773337514177,3.39653983,86.79,86.746,14.2302344]
[1773337514178,9.41851128,86.779,86.734,43.18]
[1773337515884,9.41851128,86.779,86.74,10.374]
[1773337516085,3.39653983,86.77,86.74,10.374]
[1773337516286,9.40982986,86.769,86.74,10.374]
[1773337516688,9.40982986,86.769,86.734,43.18]
[1773337516888,9.40982986,86.769,86.722,14.2302344]
[1773337517288,3.39653983,86.79,86.73,3.39653983]
[1773337517678,9.3988716,86.789,86.73,3.39653983]
[1773337518079,9.3988716,86.779,86.735,10.374]
[1773337518483,9.3988716,86.779,86.73,3.39653983]
[1773337518688,3.39653983,86.79,86.75,10.373]
[1773337519378,9.45241208,86.789,86.741,10.374]
[1773337520378,9.45236158,86.779,86.741,10.374]
[1773337520883,3.39653983,86.79,86.74,3.39653983]
[1773337521091,12.84890141,86.79,86.74,3.39653983]
[1773337521986,9.45236158,86.79,86.74,3.39653983]
[1773337522291,9.45415021,86.789,86.74,3.39653983]
[1773337522892,9.45415021,86.789,86.755,10.372]
[1773337525191,9.45569815,86.779,86.733,43.3]
[1773337525494,9.45487311,86.759,86.705,43.38]
[1773337526490,9.45487311,86.759,86.71,3.39653983]
[1773337526883,9.45487311,86.759,86.721,10.376]
[1773337527086,9.45487311,86.749,86.706,43.4]
[1773337527992,9.45487311,86.749,86.712,10.377]
[1773337531689,9.44632511,86.772,86.72,3.39653983]
[1773337532394,3.39653983,86.79,86.74,3.39653983]
[1773337532787,12.84286494,86.8,86.74,3.39653983]
[1773337532985,9.48265162,86.799,86.74,3.39653983]
[1773337533192,9.48265162,86.799,86.75,3.39653983]
[1773337535390,9.5555043,86.817,86.76,3.39653983]
[1773337535896,3.39653983,86.81,86.769,10.37]
[1773337536098,9.5555043,86.809,86.769,10.37]
[1773337538098,9.5555043,86.809,86.777,10.369]
[1773337538691,9.5555043,86.809,86.765,10.371]
[1773337539288,9.5555043,86.809,86.773,10.37]
[1773337539493,9.5555043,86.809,86.76,3.39653983]
[1773337539991,9.5555043,86.809,86.765,10.371]
[1773337542998,3.39653983,86.8,86.757,10.372]
[1773337543197,9.57494813,86.799,86.757,10.372]
[1773337544103,3.39653983,86.79,86.747,10.373]
[1773337544298,9.57793507,86.789,86.747,10.373]
[1773337544500,3.39653983,86.77,86.72,3.39653983]
[1773337544806,9.57793507,86.769,86.72,3.39653983]
[1773337545294,3.39653983,86.78,86.72,3.39653983]
[1773337545500,9.56937144,86.785,86.73,3.39653983]
[1773337546097,9.56937144,86.785,86.745,10.373]
[1773337547496,12.98420562,86.78,86.745,10.373]
[1773337547892,9.58766579,86.779,86.738,10.374]
[1773337549403,3.39653983,86.77,86.738,10.374]
[1773337549595,9.58766579,86.779,86.738,10.374]
[1773337550397,9.58766579,86.779,86.75,0.07335577]
[1773337550601,9.55051069,86.759,86.7,3.39653983]
[1773337550799,9.55051069,86.739,86.69,3.39653983]
[1773337551402,9.55051069,86.739,86.7,10.379]
[1773337551994,9.55051069,86.739,86.706,10.378]
[1773337554110,9.55051069,86.739,86.698,10.379]
[1773337555909,3.39653983,86.75,86.705,10.378]
[1773337556407,9.50463353,86.749,86.705,10.378]
[1773337558402,3.39653983,86.74,86.698,10.379]
[1773337559014,9.50463353,86.749,86.698,10.379]
[1773337559916,3.39653983,86.74,86.698,10.379]
[1773337560114,9.51445769,86.739,86.698,10.379]
[1773337560316,0.07294802,86.732,86.698,10.379]
[1773337560715,3.39653983,86.72,86.678,14.2302344]
[1773337561011,9.51445769,86.689,86.622,14.2302344]
[1773337561214,3.39653983,86.68,86.63,3.39653983]
[1773337561412,9.51445769,86.689,86.63,3.39653983]
[1773337561813,3.39653983,86.68,86.64,10.386]
[1773337562013,12.90460178,86.68,86.64,10.386]
[1773337562218,9.50806195,86.679,86.64,10.386]
[1773337562513,3.39653983,86.67,86.631,10.387]
[1773337562817,3.39653983,86.65,86.6,3.39653983]
[1773337563317,9.50806195,86.639,86.59,3.39653983]
[1773337563514,9.50806195,86.639,86.58,3.39653983]
[1773337563715,9.48620563,86.629,86.545,14.2302344]
[1773337564013,12.88274546,86.58,86.53,3.39653983]
[1773337564212,3.39653983,86.61,86.55,3.39653983]
[1773337564408,9.48620563,86.599,86.54,3.39653983]
[1773337564813,9.48620563,86.589,86.53,3.39653983]
[1773337565206,9.48620563,86.589,86.532,10.399]
[1773337565408,36.3,86.644,86.52,3.39653983]
[1773337565409,3.39653983,86.57,86.52,3.39653983]
[1773337565611,9.48245018,86.579,86.51,9.15038764]
[1773337565811,9.48245018,86.579,86.497,43.64]
[1773337566008,9.48245018,86.579,86.51,9.15038764]
[1773337567325,9.48245018,86.579,86.503,43.58]
[1773337567620,9.48245018,86.579,86.5,9.15374504]
[1773337568618,9.48245018,86.579,86.502,10.402]
[1773337568820,9.47508905,86.569,86.488,43.5]
[1773337569014,9.47508905,86.569,86.47,9.15374504]
[1773337569219,9.47508905,86.569,86.471,43.56]
[1773337569619,9.47508905,86.569,86.49,9.15374504]
[1773337570025,9.47508905,86.569,86.504,10.402]
[1773337570220,10.394,86.568,86.471,43.56]
[1773337570420,9.47448216,86.567,86.471,43.56]
[1773337570615,9.47448216,86.567,86.492,10.404]
[1773337571317,9.47448216,86.567,86.471,43.56]
[1773337571713,9.15374504,86.57,86.471,43.56]
[1773337571714,9.478429,86.564,86.478,10.405]
[1773337571923,9.478429,86.549,86.45,9.15374504]
[1773337572922,9.478429,86.529,86.45,9.15374504]
[1773337573228,9.478429,86.529,86.43,9.15374504]
[1773337573915,9.4223123,86.528,86.44,9.15374504]
[1773337574115,9.4223123,86.528,86.46,9.15374504]
[1773337574426,9.4223123,86.557,86.48,9.15374504]
[1773337574625,9.4223123,86.555,86.483,10.405]
[1773337575023,9.4223123,86.555,86.493,10.403]
[1773337576419,9.4223123,86.555,86.503,10.402]
[1773337576620,9.4223123,86.555,86.5,9.15374504]
[1773337577019,9.4223123,86.555,86.461,34.53]
[1773337577020,9.4223123,86.555,86.48,9.15374504]
[1773337577420,9.4223123,86.555,86.46,9.15374504]
[1773337577625,9.35168766,86.539,86.46,9.15374504]
[1773337577827,9.35168766,86.539,86.443,43.64]
[1773337578129,9.35168766,86.539,86.46,9.15374504]
[1773337578728,9.35168766,86.537,86.471,10.406]
[1773337579223,9.35168766,86.537,86.46,9.15374504]
[1773337579528,9.35125601,86.579,86.48,9.15374504]
[1773337579925,9.35125601,86.575,86.5,9.15374504]
[1773337581725,9.35125601,86.575,86.525,10.4]
[1773337581928,9.35125601,86.575,86.467,20.814]
[1773337581929,9.35125601,86.575,86.49,9.15374504]
[1773337582130,9.37224866,86.564,86.442,20.82]
[1773337582333,9.37224866,86.549,86.46,9.15374504]
[1773337583421,9.37224866,86.549,86.485,10.404]
[1773337583622,9.40641253,86.539,86.46,9.15374504]
[1773337584030,9.40641253,86.539,86.484,10.404]
[1773337584227,9.40641253,86.539,86.46,9.15374504]
[1773337584733,9.40641253,86.539,86.484,10.404]
[1773337585329,9.40641253,86.539,86.46,9.15374504]
[1773337587037,9.40708,86.559,86.48,9.15374504]
[1773337587935,9.40708,86.559,86.47,43.6]
[1773337589237,9.40344601,86.557,86.47,43.6]
[1773337589433,9.40344601,86.557,86.48,9.15374504]
[1773337590236,9.40344601,86.557,86.508,10.402]
[1773337590440,9.40344601,86.557,86.47,43.6]
[1773337591139,9.37398871,86.555,86.47,43.6]
[1773337591735,9.37398871,86.555,86.513,10.401]
[1773337592042,9.37398871,86.555,86.48,9.15374504]
[1773337592740,9.37398871,86.555,86.513,10.401]
[1773337593132,9.37398871,86.555,86.48,9.15374504]
[1773337593638,9.39836346,86.579,86.5,9.15374504]
[1773337593939,9.15374504,86.61,86.52,9.15374504]
[1773337593940,9.39836346,86.609,86.52,9.15374504]
[1773337594142,9.15374504,86.61,86.547,10.397]
[1773337594143,9.39836346,86.605,86.547,10.397]
[1773337594349,9.39836346,86.605,86.5,9.15374504]
[1773337595450,9.40880491,86.589,86.525,10.399]
[1773337595946,9.40880491,86.589,86.5,9.15374504]
[1773337596351,9.40880491,86.589,86.532,10.399]
[1773337596649,9.40880491,86.588,86.5,9.15374504]
[1773337598044,9.40880491,86.588,86.532,10.399]
[1773337598448,9.40880491,86.588,86.5,9.15374504]
[1773337599444,9.40880491,86.588,86.549,10.397]
[1773337599751,9.40880491,86.588,86.52,9.15374504]
[1773337600148,9.40880491,86.588,86.548,10.397]
[1773337600548,9.40880491,86.588,86.52,9.15374504]
[1773337600750,9.40880491,86.588,86.556,10.396]
[1773337601148,9.40880491,86.588,86.52,9.15374504]
[1773337601344,9.40880491,86.588,86.54,10.398]
[1773337601551,9.40880491,86.588,86.5,9.15374504]
[1773337602056,9.40880491,86.588,86.552,10.396]
[1773337602354,9.40880491,86.588,86.52,9.15374504]
[1773337602557,9.41100557,86.609,86.54,9.15374504]
[1773337603255,9.41100557,86.609,86.574,10.394]
[1773337603852,9.41100557,86.609,86.53,20.798]
[1773337605656,9.41100557,86.609,86.559,10.395]
[1773337605856,9.41100557,86.609,86.525,43.38]
[1773337606957,9.41100557,86.609,86.582,10.393]
[1773337607258,9.43257187,86.626,86.56,9.15374504]
[1773337607560,9.43257187,86.626,86.586,10.392]
[1773337607760,9.43257187,86.626,86.56,9.15374504]
[1773337608752,9.43257187,86.626,86.592,10.391]
[1773337609456,9.43257187,86.626,86.598,10.391]
[1773337611363,9.43257187,86.626,86.59,10.392]
[1773337611660,9.43257187,86.626,86.561,20.791]
[1773337611862,9.43536067,86.644,86.603,10.39]
[1773337615563,9.43536067,86.644,86.563,20.79]
[1773337615864,9.43536067,86.644,86.545,43.34]
[1773337615865,9.43985831,86.639,86.545,43.34]
[1773337616064,9.43985831,86.627,86.58,10.393]
[1773337617361,9.43985831,86.619,86.523,20.8]
[1773337617768,9.43827161,86.612,86.562,10.395]
[1773337619565,9.45526025,86.61,86.551,10.396]
[1773337619766,9.45526025,86.61,86.51,9.15374504]
[1773337619964,9.45526025,86.61,86.498,41.56]
[1773337619965,9.45526025,86.61,86.53,9.15374504]
[1773337620665,9.45526025,86.61,86.554,10.396]
[1773337620856,9.45526025,86.61,86.498,41.56]
[1773337620857,9.45526025,86.599,86.51,9.15374504]
[1773337621261,9.45526025,86.599,86.545,10.397]
[1773337621457,9.45526025,86.599,86.51,9.15374504]
[1773337621656,9.45526025,86.599,86.496,14.26189237]
[1773337621657,9.43160814,86.619,86.55,9.15374504]
[1773337621859,9.43160814,86.639,86.55,9.15374504]
[1773337622260,9.43160814,86.639,86.6,10.39]
[1773337622461,9.43160814,86.639,86.554,20.793]
[1773337622863,9.43160814,86.639,86.57,9.15374504]
[1773337623567,9.43160814,86.639,86.607,10.39]
[1773337624064,9.45011291,86.659,86.616,10.389]
[1773337626361,9.45011291,86.659,86.623,10.388]
[1773337627967,9.42800494,86.679,86.63,10.387]
[1773337628574,9.42800494,86.679,86.58,9.13368951]
[1773337629274,9.42800494,86.676,86.625,10.388]
[1773337631764,9.42800494,86.676,86.632,10.387]
[1773337633168,9.42800494,86.676,86.624,10.388]
[1773337633377,9.42800494,86.676,86.6,9.13368951]
[1773337634867,9.42800494,86.676,86.629,10.387]
[1773337635272,0.07294862,86.647,86.629,10.387]
[1773337637574,0.07294862,86.647,86.614,10.389]
[1773337637774,0.07294862,86.647,86.589,20.784]
[1773337638076,9.42874444,86.661,86.589,20.784]
[1773337639880,9.44011367,86.698,86.62,9.13368951]
[1773337641377,9.44011367,86.698,86.649,10.385]
[1773337641577,9.44011367,86.698,86.62,9.13368951]
[1773337643485,9.44011367,86.698,86.611,20.779]
[1773337644086,9.44011367,86.698,86.658,10.384]
[1773337644285,9.44011367,86.698,86.613,20.778]
[1773337644789,9.44011367,86.698,86.657,10.384]
[1773337645189,9.45132704,86.72,86.63,9.13368951]
[1773337645385,9.44846075,86.749,86.67,9.13368951]
[1773337646594,9.44846075,86.749,86.653,20.769]
[1773337646791,9.13368951,86.75,86.653,20.769]
[1773337646792,0.07312401,86.718,86.653,20.769]
[1773337647382,9.44846075,86.727,86.653,20.769]
[1773337647988,9.44846075,86.727,86.675,10.382]
[1773337648187,9.44846075,86.727,86.65,9.13368951]
[1773337648491,9.44846075,86.727,86.684,10.38]
[1773337649885,9.55202724,86.743,86.65,9.13368951]
[1773337650094,9.55202724,86.743,86.67,9.13368951]
[1773337650687,9.55202724,86.743,86.709,10.377]
[1773337650993,9.55202724,86.743,86.67,9.13368951]
[1773337651494,9.55202724,86.743,86.708,10.378]
[1773337651992,9.58983544,86.784,86.71,9.13368951]
[1773337652795,9.58983544,86.774,86.69,9.13368951]
[1773337653395,9.58983544,86.774,86.724,10.376]
[1773337653693,9.58983544,86.774,86.69,9.13368951]
[1773337654083,9.58983544,86.774,86.715,10.377]
[1773337654690,9.13368951,86.77,86.704,10.378]
[1773337654889,9.60777923,86.769,86.704,10.378]
[1773337655893,9.61582434,86.764,86.704,10.378]
[1773337656095,9.61582434,86.764,86.712,10.377]
[1773337656596,9.61582434,86.762,86.704,10.378]
[1773337656991,9.61582434,86.762,86.67,9.13368951]
[1773337657297,9.61582434,86.762,86.651,196.222]
[1773337657298,9.61582434,86.777,86.734,10.374]
[1773337657894,9.61582434,86.777,86.726,10.375]
[1773337660598,9.61582434,86.777,86.743,0.07278013]
[1773337669809,9.66975318,86.793,86.75,3.40016337]
[1773337670014,10.65820399,86.853,86.743,0.07278013]
[1773337670015,9.66975318,86.809,86.76,3.40016337]
[1773337670310,9.66975318,86.809,86.77,3.40016337]
[1773337670504,9.66975318,86.809,86.75,3.40016337]
[1773337670907,9.66980398,86.808,86.766,10.371]
[1773337671510,9.66980398,86.808,86.75,3.40016337]
[1773337671713,9.66980398,86.808,86.73,9.10379193]
[1773337672715,9.67596019,86.793,86.71,9.10379193]
[1773337672916,9.67596019,86.793,86.76,0.07270606]
[1773337674416,9.67376726,86.79,86.737,10.374]
[1773337674717,9.67376726,86.79,86.71,9.10379193]
[1773337675811,9.63726958,86.786,86.71,9.10379193]
[1773337676714,9.63726958,86.786,86.711,20.755]
[1773337679018,9.63726958,86.786,86.744,10.373]
[1773337679915,9.63726958,86.786,86.711,20.755]
[1773337680420,9.63726958,86.786,86.75,10.372]
[1773337680621,9.63053701,86.807,86.73,9.10379193]
[1773337681909,9.63053701,86.807,86.765,10.371]
[1773337682716,20.72,86.859,86.729,41.76]
[1773337682717,9.63043943,86.849,86.77,9.10379193]
[1773337682917,9.10379193,86.85,86.76,9.10379193]
[1773337682918,9.63043943,86.827,86.76,9.10379193]
[1773337683221,9.63043943,86.849,86.76,9.10379193]
[1773337683718,9.66270493,86.838,86.79,10.368]
[1773337686224,9.66270493,86.838,86.797,10.367]
[1773337686719,9.87569266,86.853,86.811,10.365]
[1773337686917,9.87569266,86.853,86.78,9.10379193]
[1773337687319,9.87569266,86.849,86.78,9.10379193]
[1773337689120,9.81682021,86.846,86.78,9.10379193]
[1773337689719,9.81682021,86.846,86.77,9.09370609]
[1773337689916,9.81646582,86.86,86.79,9.09370609]
[1773337690929,9.81646582,86.889,86.79,9.09370609]
[1773337691129,9.81646582,86.888,86.79,9.09370609]
[1773337691829,9.81502181,86.881,86.79,9.09370609]
[1773337692619,9.81502181,86.862,86.782,41.72]
[1773337693025,9.81502181,86.862,86.822,10.364]
[1773337693622,9.81502181,86.862,86.829,10.363]
[1773337694629,9.81502181,86.862,86.822,10.364]
[1773337696531,9.81502181,86.862,86.814,10.365]
[1773337697130,9.91196374,86.852,86.805,10.366]
[1773337697835,9.91196374,86.852,86.811,10.365]
[1773337698030,9.91196374,86.852,86.767,20.741]
[1773337698031,9.91063792,86.869,86.763,34.68]
[1773337698231,9.91063792,86.869,86.8,9.09370609]
[1773337698428,11.69988514,86.898,86.8,9.09370609]
[1773337698630,10.355,86.896,86.85,10.361]
[1773337698830,9.91063792,86.895,86.82,9.09370609]
[1773337699035,9.91063792,86.895,86.84,9.09370609]
[1773337699230,0.07269709,86.882,86.863,10.359]
[1773337699641,0.07269709,86.882,86.82,9.09370609]
[1773337699839,0.07269709,86.882,86.838,10.362]
[1773337700036,9.90829469,86.882,86.8,9.09370609]
[1773337700238,9.8355976,86.882,86.8,9.09370609]
[1773337700540,9.83561336,86.864,86.812,10.365]
[1773337701335,9.87787512,86.862,86.803,10.366]
[1773337701536,9.87787512,86.862,86.784,41.56]
[1773337701936,9.87787512,86.851,86.802,10.366]
[1773337702842,9.87787512,86.851,86.794,10.367]
[1773337703935,9.82489379,86.849,86.786,10.368]
[1773337704136,9.82489379,86.849,86.77,9.09370609]
[1773337705432,9.82489379,86.849,86.793,10.367]
[1773337706240,9.8221157,86.848,86.77,9.09370609]
[1773337706437,9.8221157,86.864,86.79,9.09370609]
[1773337706742,9.8221157,86.911,86.83,9.09370609]
[1773337706936,9.8221157,86.911,86.83,50.63370609]
[1773337707137,9.8221157,86.911,86.869,10.358]
[1773337708241,9.81727299,86.927,86.85,9.09370609]
[1773337709038,9.81727299,86.927,86.841,41.48]
[1773337709442,9.81727299,86.927,86.83,9.09370609]
[1773337710341,9.80738533,86.901,86.845,10.361]
[1773337710542,9.80738533,86.901,86.826,41.48]
[1773337711943,9.84073393,86.889,86.833,10.363]
[1773337712141,0.0725919,86.872,86.833,10.363]
[1773337712344,0.0725919,86.872,86.81,9.09370609]
[1773337712345,0.0725919,86.872,86.824,10.364]
[1773337712543,9.84073393,86.871,86.79,9.09370609]
[1773337712936,9.84073393,86.869,86.784,41.48]
[1773337713844,9.84073393,86.869,86.79,9.09370609]
[1773337714943,9.84073393,86.869,86.814,10.365]
[1773337717143,36.26,86.915,86.822,10.364]
[1773337717144,9.85079806,86.884,86.822,10.364]
[1773337717351,9.85079806,86.884,86.79,9.09370609]
[1773337717648,9.85079806,86.884,86.81,9.09370609]
[1773337717649,0.07286885,86.862,86.81,9.09370609]
[1773337718041,0.07286885,86.862,86.792,20.735]
[1773337718242,9.85080825,86.869,86.792,20.735]